bitfinex-derivatives/quotes_SOLF0:USTF0_20250415
["timestamp","ask_amount","ask_price","bid_price","bid_amount"]
[1744730446762,7.6005,131.58,131.57,0.05503207]
[1744730446961,3.8175,131.59,131.52,35.88]
[1744730447162,7.6026,131.55,131.52,35.88]
[1744730447362,29.31917638,131.56,131.5,547.1]
[1744730447655,7.6031,131.54,131.5,554.705]
[1744730447861,0.05802885,131.53,131.51,0.05400691]
[1744730448865,7.604,131.52,131.51,0.05400691]
[1744730452664,29.31917638,131.52,131.44,554.7684]
[1744730452974,3.7922,131.51,131.45,35.88]
[1744730453372,29.31917638,131.5,131.45,35.88]
[1744730453672,0.05770683,131.49,131.46,0.05142338]
[1744730453869,3.69440683,131.49,131.46,0.05142338]
[1744730454073,7.6069,131.47,131.46,0.05142338]
[1744730454267,3.69440683,131.49,131.46,0.05142338]
[1744730455272,0.05770683,131.49,131.46,0.05142338]
[1744730455675,7.66350683,131.49,131.46,0.05142338]
[1744730455972,0.05770683,131.49,131.46,0.05142338]
[1744730456377,7.6069,131.47,131.46,0.05142338]
[1744730459371,0.05770683,131.49,131.46,0.05142338]
[1744730460878,7.6069,131.47,131.46,0.05142338]
[1744730464482,29.37688321,131.49,131.42,35.9]
[1744730464681,29.31917638,131.49,131.42,43.5095]
[1744730464980,7.6083,131.45,131.42,43.5095]
[1744730465176,7.6083,131.45,131.43,7.6092]
[1744730465381,0.05757017,131.45,131.43,0.05444433]
[1744730467276,3.9048,131.5,131.47,7.6068]
[1744730467476,3.7922,131.51,131.47,7.6068]
[1744730467677,3.7922,131.51,131.46,35.9]
[1744730467876,33.11137638,131.51,131.42,3.9733]
[1744730468081,29.31917638,131.49,131.43,35.9]
[1744730468285,0.0503075,131.47,131.45,7.65636062]
[1744730468472,0.0503075,131.47,131.45,0.04866062]
[1744730468876,7.6074,131.46,131.45,0.04866062]
[1744730470587,7.6088,131.44,131.41,43.51]
[1744730470885,29.31917638,131.47,131.41,43.51]
[1744730471080,29.31917638,131.47,131.41,35.9]
[1744730471276,7.6098,131.42,131.41,35.9]
[1744730471676,7.66330708,131.43,131.41,35.9]
[1744730471975,0.05390708,131.43,131.41,35.9]
[1744730472384,7.6098,131.42,131.41,35.9]
[1744730473485,7.6098,131.42,131.4,0.04972939]
[1744730473790,7.6103,131.41,131.4,0.04972939]
[1744730474281,29.31917638,131.41,131.35,35.82]
[1744730474488,29.31917638,131.39,131.32,583.44]
[1744730474788,29.31917638,131.39,131.33,7.6147]
[1744730474978,29.31917638,131.39,131.32,583.44]
[1744730474979,3.9309,131.38,131.32,583.44]
[1744730475289,0.05263076,131.36,131.34,0.05390356]
[1744730475485,7.6143,131.35,131.34,0.05390356]
[1744730476089,7.66603076,131.36,131.34,0.05390356]
[1744730476385,0.05263076,131.36,131.34,0.05390356]
[1744730476988,0.05263076,131.36,131.35,7.6138]
[1744730477186,0.05263076,131.36,131.34,0.05390356]
[1744730477587,0.05263076,131.36,131.34,7.66800356]
[1744730477793,0.05263076,131.36,131.34,0.05390356]
[1744730478186,0.05263076,131.36,131.35,7.6138]
[1744730478387,30.64403266,131.46,131.35,7.6138]
[1744730478388,29.31917638,131.46,131.35,29.31917638]
[1744730478586,36.78897638,131.46,131.36,35.82]
[1744730478783,36.78897638,131.46,131.39,7.6115]
[1744730478992,36.78897638,131.46,131.36,35.82]
[1744730479294,0.04800939,131.42,131.4,0.05216751]
[1744730480494,7.6103,131.41,131.4,0.05216751]
[1744730480891,29.36718577,131.42,131.36,35.82]
[1744730481292,29.31917638,131.4,131.33,35.82]
[1744730481493,7.6137,131.36,131.33,43.4345]
[1744730481692,3.6411,131.39,131.33,35.82]
[1744730481993,0.05569557,131.37,131.35,0.04834306]
[1744730482190,0.05569557,131.37,131.35,7.66214306]
[1744730482589,0.05569557,131.37,131.36,7.6132]
[1744730486287,0.05569557,131.37,131.35,0.04834306]
[1744730486788,7.66859557,131.37,131.35,0.04834306]
[1744730486988,0.05569557,131.37,131.35,0.04834306]
[1744730487397,7.6132,131.36,131.35,0.04834306]
[1744730487597,0.05569557,131.37,131.35,0.04834306]
[1744730489199,0.05569557,131.37,131.36,7.6132]
[1744730491300,0.05569557,131.37,131.35,0.04834306]
[1744730491491,0.05569557,131.37,131.36,7.6132]
[1744730491900,0.05569557,131.37,131.35,7.66204306]
[1744730492104,0.05569557,131.37,131.35,0.04834306]
[1744730493202,0.05569557,131.37,131.36,7.6132]
[1744730494899,360.8822,131.43,131.35,0.04834306]
[1744730495105,3.8822,131.43,131.34,11.3002]
[1744730495299,7.7809,131.45,131.4,7.6105]
[1744730495803,0.05593122,131.44,131.41,0.05795186]
[1744730496006,7.6092,131.43,131.41,0.05795186]
[1744730496605,7.6092,131.43,131.41,7.66815186]
[1744730496794,7.6098,131.42,131.41,0.05795186]
[1744730497401,7.66503122,131.44,131.41,0.05795186]
[1744730497602,0.05593122,131.44,131.41,0.05795186]
[1744730497803,0.05593122,131.44,131.43,7.6092]
[1744730498700,7.4921,131.51,131.43,35.84]
[1744730499009,7.6055,131.5,131.43,35.84]
[1744730499203,7.4921,131.51,131.48,7.6062]
[1744730499608,15.0969,131.51,131.48,7.6062]
[1744730499906,15.14904949,131.51,131.48,7.66322132]
[1744730501109,0.05214949,131.51,131.48,0.05702132]
[1744730501614,0.05214949,131.51,131.5,7.6051]
[1744730502006,7.4229,131.57,131.48,0.05702132]
[1744730502202,7.6019,131.56,131.48,3.8784]
[1744730502406,7.4229,131.57,131.48,3.8784]
[1744730502706,3.7314,131.57,131.49,29.31917638]
[1744730502905,3.8259,131.59,131.51,29.31917638]
[1744730503205,0.05271226,131.56,131.55,7.6022]
[1744730503410,0.05332951,131.57,131.54,0.0534104]
[1744730503613,0.04925237,131.57,131.54,0.05051721]
[1744730504309,0.04925237,131.57,131.56,7.6017]
[1744730504609,0.04925237,131.57,131.56,43.3217]
[1744730505308,0.04925237,131.57,131.56,35.72]
[1744730505610,7.65035237,131.57,131.56,35.72]
[1744730505805,0.04925237,131.57,131.54,0.05051721]
[1744730506011,7.65045237,131.57,131.54,0.05051721]
[1744730507214,7.65045237,131.57,131.54,7.65331721]
[1744730508214,0.04925237,131.57,131.54,0.05051721]
[1744730509514,0.04925237,131.57,131.54,7.65301721]
[1744730510211,7.65045237,131.57,131.54,7.65301721]
[1744730510417,0.04925237,131.57,131.54,0.05051721]
[1744730510806,7.6022,131.55,131.54,0.05051721]
[1744730511214,37.13147638,131.56,131.5,35.7]
[1744730511413,7.6041,131.52,131.5,35.7]
[1744730511612,65.01917638,131.54,131.44,3.6266]
[1744730511812,7.6064,131.48,131.42,35.7]
[1744730512012,29.31917638,131.48,131.42,35.7]
[1744730512213,0.05782112,131.46,131.44,0.05590422]
[1744730512614,0.05782112,131.46,131.44,7.66420422]
[1744730512814,0.05782112,131.46,131.44,0.05590422]
[1744730515320,7.66572112,131.46,131.44,0.05590422]
[1744730515722,0.05782112,131.46,131.44,0.05590422]
[1744730516021,0.05782112,131.46,131.45,7.608]
[1744730520428,0.05782112,131.46,131.44,7.66430422]
[1744730520826,0.05782112,131.46,131.44,0.05590422]
[1744730521422,0.05782112,131.46,131.45,7.608]
[1744730521626,7.8123,131.56,131.45,36.91917638]
[1744730521827,7.8123,131.56,131.47,29.31917638]
[1744730522024,7.8123,131.56,131.48,35.7]
[1744730522625,0.05454481,131.53,131.51,0.05310555]
[1744730523227,0.05454481,131.53,131.52,7.604]
[1744730523728,0.05454481,131.53,131.51,0.05310555]
[1744730523923,0.05454481,131.53,131.51,7.65740555]
[1744730524529,0.05454481,131.53,131.52,7.604]
[1744730524829,0.05454481,131.53,131.51,0.05310555]
[1744730525429,0.05454481,131.53,131.48,35.7]
[1744730525630,3.79794481,131.53,131.48,35.7]
[1744730526132,7.6043,131.52,131.48,35.7]
[1744730526537,7.6043,131.52,131.49,0.05657021]
[1744730526730,7.6047,131.51,131.49,7.66197021]
[1744730526927,7.6047,131.51,131.49,0.05657021]
[1744730527332,3.79794481,131.53,131.49,0.05657021]
[1744730527529,0.05454481,131.53,131.49,0.05657021]
[1744730527731,0.05454481,131.53,131.49,7.66197021]
[1744730528024,7.6043,131.52,131.49,7.66197021]
[1744730528534,7.6046,131.51,131.49,7.66197021]
[1744730528834,0.05454481,131.53,131.49,0.05657021]
[1744730529037,7.6051,131.5,131.49,0.05657021]
[1744730529228,0.05454481,131.53,131.49,0.05657021]
[1744730529432,7.6043,131.52,131.49,0.05657021]
[1744730529734,7.6043,131.52,131.49,7.66187021]
[1744730530337,0.05454481,131.53,131.49,0.05657021]
[1744730530730,0.05454481,131.53,131.51,7.6042]
[1744730531940,0.05454481,131.53,131.52,7.604]
[1744730532136,0.05454481,131.53,131.49,0.05657021]
[1744730532336,0.05454481,131.53,131.51,7.6043]
[1744730532533,7.65794481,131.53,131.49,0.05657021]
[1744730533143,0.05454481,131.53,131.51,7.6043]
[1744730533333,0.05454481,131.53,131.49,0.05657021]
[1744730533635,0.05454481,131.53,131.51,7.6043]
[1744730533843,0.05454481,131.53,131.49,0.05657021]
[1744730534135,0.05454481,131.53,131.52,7.604]
[1744730535438,0.05454481,131.53,131.52,43.184]
[1744730535740,7.8123,131.56,131.54,7.6028]
[1744730536032,7.6015,131.57,131.54,7.6028]
[1744730536237,3.9324,131.58,131.52,35.58]
[1744730536434,3.9179,131.59,131.52,35.58]
[1744730536629,0.04995216,131.57,131.54,0.04811982]
[1744730536835,0.04995216,131.57,131.56,7.6017]
[1744730537137,0.04995216,131.57,131.56,43.1817]
[1744730537936,7.5983,131.62,131.6,7.5993]
[1744730538341,7.7967,131.63,131.56,35.58]
[1744730538533,7.5988,131.61,131.59,7.5999]
[1744730538735,29.31917638,131.62,131.56,35.58]
[1744730538935,0.0372504,131.6,131.58,0.05414405]
[1744730539434,7.6002,131.59,131.58,0.05414405]
[1744730539637,29.35642678,131.6,131.53,35.58]
[1744730539835,29.31917638,131.56,131.5,35.58]
[1744730540031,3.9255,131.55,131.5,35.58]
[1744730540641,0.05201876,131.54,131.51,0.05113338]
[1744730540837,7.65511876,131.54,131.51,7.65563338]
[1744730541139,0.05201876,131.54,131.51,0.05113338]
[1744730542033,7.6037,131.53,131.51,0.05113338]
[1744730542239,0.05201876,131.54,131.51,0.05113338]
[1744730542437,7.604,131.52,131.51,0.05113338]
[1744730543337,7.604,131.52,131.5,35.58]
[1744730543338,7.6055,131.5,131.47,583.08]
[1744730543541,3.9165,131.53,131.47,583.08]
[1744730543741,3.9165,131.53,131.48,7.6062]
[1744730544040,3.9165,131.53,131.47,583.08]
[1744730544241,3.9165,131.53,131.49,7.6055]
[1744730544436,0.04904426,131.52,131.5,0.04962889]
[1744730545243,7.65324426,131.52,131.5,0.04962889]
[1744730546145,7.65324426,131.52,131.5,7.65462889]
[1744730546345,0.04904426,131.52,131.5,7.65462889]
[1744730547946,0.04904426,131.52,131.51,7.6045]
[1744730548143,0.04904426,131.52,131.5,0.04962889]
[1744730548643,0.04904426,131.52,131.5,7.65472889]
[1744730549649,7.6019,131.56,131.51,35.58]
[1744730550048,364.6573,131.59,131.51,35.58]
[1744730550249,7.6014,131.57,131.55,7.6021]
[1744730550646,7.6573,131.59,131.55,35.58]
[1744730550847,0.05853739,131.57,131.56,7.6017]
[1744730552250,0.05853739,131.57,131.55,35.6348534]
[1744730552450,0.05853739,131.57,131.55,0.0548534]
[1744730552654,7.6017,131.56,131.55,0.0548534]
[1744730552951,0.05853739,131.57,131.55,0.0548534]
[1744730553346,0.05853739,131.57,131.56,7.6017]
[1744730554251,0.05853739,131.57,131.55,7.6567534]
[1744730556054,0.05853739,131.57,131.55,0.0548534]
[1744730556550,7.6017,131.56,131.55,0.0548534]
[1744730558457,7.6033,131.54,131.52,35.58]
[1744730558752,29.31917638,131.57,131.52,35.58]
[1744730558954,7.6033,131.54,131.52,43.1839]
[1744730559356,7.66194124,131.54,131.52,43.23847503]
[1744730559755,7.6034,131.53,131.52,35.63457503]
[1744730559949,0.05864124,131.54,131.52,35.63457503]
[1744730560351,0.05864124,131.54,131.52,43.23817503]
[1744730560549,0.05864124,131.54,131.52,35.63457503]
[1744730560753,0.05864124,131.54,131.52,0.05457503]
[1744730560955,7.6034,131.53,131.52,0.05457503]
[1744730564847,7.6051,131.5,131.49,35.58]
[1744730565047,7.6051,131.5,131.47,547.5]
[1744730565260,30.21903472,131.53,131.47,547.5]
[1744730565453,7.6041,131.52,131.47,547.5]
[1744730565856,0.05183944,131.51,131.49,7.6053]
[1744730566159,0.05183944,131.51,131.48,0.05546104]
[1744730566558,0.05183944,131.51,131.5,7.6051]
[1744730566758,0.05183944,131.51,131.5,43.0851]
[1744730570564,7.65633944,131.51,131.5,35.48]
[1744730570766,0.05183944,131.51,131.48,0.05546104]
[1744730570966,0.05183944,131.51,131.49,7.6057]
[1744730572469,7.65643944,131.51,131.49,7.6057]
[1744730572668,7.65643944,131.51,131.48,7.66146104]
[1744730573562,7.6051,131.5,131.48,7.66146104]
[1744730573766,0.05183944,131.51,131.48,0.05546104]
[1744730574570,7.65643944,131.51,131.49,7.6055]
[1744730574870,0.05183944,131.51,131.48,0.05546104]
[1744730575664,0.05183944,131.51,131.49,7.6057]
[1744730575859,0.05183944,131.51,131.48,0.05546104]
[1744730576163,7.6054,131.5,131.48,7.66146104]
[1744730576363,0.05183944,131.51,131.48,0.05546104]
[1744730576568,18.40677416,131.51,131.48,0.05546104]
[1744730576765,7.6057,131.49,131.48,0.05546104]
[1744730577266,7.6054,131.5,131.48,0.05546104]
[1744730577569,0.05183944,131.51,131.48,0.05546104]
[1744730578169,7.6052,131.5,131.48,7.66146104]
[1744730579472,0.05183944,131.51,131.48,0.05546104]
[1744730580172,7.65643944,131.51,131.49,7.6055]
[1744730580373,0.05183944,131.51,131.48,0.05546104]
[1744730580873,0.05183944,131.51,131.5,7.6051]
[1744730582270,0.05183944,131.51,131.48,0.05546104]
[1744730582476,7.6055,131.5,131.48,0.05546104]
[1744730583172,7.65663944,131.51,131.48,0.05546104]
[1744730583370,0.05183944,131.51,131.48,0.05546104]
[1744730584372,7.65673944,131.51,131.48,7.66136104]
[1744730584575,0.05183944,131.51,131.48,7.66136104]
[1744730584869,0.05183944,131.51,131.48,0.05546104]
[1744730585675,0.05183944,131.51,131.5,7.6051]
[1744730585866,0.05183944,131.51,131.48,0.05546104]
[1744730586175,7.65673944,131.51,131.48,7.66136104]
[1744730586371,0.05183944,131.51,131.48,0.05546104]
[1744730586774,7.6055,131.5,131.48,7.66166104]
[1744730589074,7.65673944,131.51,131.49,7.6056]
[1744730589275,0.05183944,131.51,131.48,0.05546104]
[1744730589676,7.65643944,131.51,131.49,7.6055]
[1744730589877,0.05183944,131.51,131.48,0.05546104]
[1744730590273,0.05183944,131.51,131.5,7.6051]
[1744730598379,0.05183944,131.51,131.48,7.66146104]
[1744730598568,18.40677416,131.51,131.48,0.05546104]
[1744730598969,18.35493472,131.49,131.44,7.6084]
[1744730599274,18.35493472,131.47,131.43,35.36]
[1744730599474,11.2269,131.5,131.45,7.6079]
[1744730599475,7.6065,131.48,131.45,7.6079]
[1744730599674,18.35493472,131.49,131.43,35.36]
[1744730599976,0.04982659,131.47,131.45,0.05101499]
[1744730600174,7.65672659,131.47,131.45,0.05101499]
[1744730600675,7.6074,131.46,131.45,0.05101499]
[1744730600876,0.04982659,131.47,131.45,0.05101499]
[1744730602069,0.04982659,131.47,131.46,7.6074]
[1744730607483,0.04982659,131.47,131.45,0.05101499]
[1744730607680,7.65692659,131.47,131.45,0.05101499]
[1744730608783,0.04982659,131.47,131.45,7.65861499]
[1744730609178,0.04982659,131.47,131.45,0.05101499]
[1744730609376,7.65702659,131.47,131.45,0.05101499]
[1744730609876,0.04982659,131.47,131.45,0.05101499]
[1744730610082,7.6074,131.46,131.45,0.05101499]
[1744730610282,0.04982659,131.47,131.45,0.05101499]
[1744730610484,7.65722659,131.47,131.45,0.05101499]
[1744730610673,0.04982659,131.47,131.45,0.05101499]
[1744730611783,7.6074,131.46,131.45,0.05101499]
[1744730612382,7.6091,131.44,131.4,35.38]
[1744730612981,7.6091,131.44,131.41,7.61]
[1744730613181,7.6092,131.43,131.41,7.61]
[1744730613383,0.05081886,131.43,131.41,0.05682584]
[1744730614083,0.05081886,131.43,131.41,7.66672584]
[1744730614283,0.05081886,131.43,131.41,0.05682584]
[1744730614781,18.40575358,131.43,131.37,582.74]
[1744730615387,18.40575358,131.43,131.37,35.38]
[1744730615581,18.35493472,131.41,131.37,35.38]
[1744730615980,7.6116,131.39,131.38,0.04982395]
[1744730616282,0.05071878,131.4,131.38,0.04982395]
[1744730616483,7.66191878,131.4,131.38,0.04982395]
[1744730617386,0.05071878,131.4,131.38,7.66172395]
[1744730617684,0.05071878,131.4,131.38,0.04982395]
[1744730617886,0.05071878,131.4,131.35,7.6135]
[1744730618086,3.5814,131.4,131.34,35.38]
[1744730618690,3.5814,131.4,131.36,7.6131]
[1744730618987,0.04988278,131.39,131.37,0.05297973]
[1744730619191,7.6121,131.38,131.37,0.05297973]
[1744730622589,7.66168278,131.39,131.37,0.05297973]
[1744730622885,0.04988278,131.39,131.37,7.66517973]
[1744730623084,0.04988278,131.39,131.37,0.05297973]
[1744730624190,7.66138278,131.39,131.37,0.05297973]
[1744730624386,0.04988278,131.39,131.37,0.05297973]
[1744730624786,7.6121,131.38,131.37,0.05297973]
[1744730624991,21.9477175,131.39,131.34,35.38]
[1744730625391,21.9477175,131.39,131.33,7.6146]
[1744730625687,18.35493472,131.37,131.33,7.6146]
[1744730625892,0.0515519,131.36,131.34,0.05821693]
[1744730626798,7.6141,131.35,131.34,0.05821693]
[1744730627001,0.0515519,131.36,131.34,0.05821693]
[1744730627301,0.0515519,131.36,131.34,7.67241693]
[1744730627502,0.0515519,131.36,131.34,0.05821693]
[1744730628401,7.6138,131.35,131.34,0.05821693]
[1744730629304,3.6680519,131.36,131.28,35.28]
[1744730629502,3.6165,131.36,131.28,35.28]
[1744730630105,3.6165,131.36,131.31,7.6159]
[1744730630302,0.04900393,131.35,131.32,0.05455863]
[1744730630606,7.615,131.33,131.32,0.05455863]
[1744730630806,0.04900393,131.35,131.32,0.05455863]
[1744730631101,7.6148,131.34,131.32,7.67005863]
[1744730631302,7.6148,131.34,131.32,0.05455863]
[1744730631808,0.04900393,131.35,131.32,0.05455863]
[1744730632505,7.66290393,131.35,131.33,7.6147]
[1744730633305,7.6144,131.34,131.32,0.05455863]
[1744730634002,7.6144,131.34,131.32,7.66985863]
[1744730635508,7.615,131.33,131.32,0.05455863]
[1744730636604,3.80510393,131.35,131.32,0.05455863]
[1744730637003,0.04900393,131.35,131.32,35.33455863]
[1744730637208,0.04900393,131.35,131.34,7.6144]
[1744730640204,0.04900393,131.35,131.33,7.6146]
[1744730640405,0.04900393,131.35,131.32,35.35455863]
[1744730640908,0.04900393,131.35,131.34,7.6144]
[1744730642312,3.723,131.4,131.36,7.6132]
[1744730642812,7.6126,131.38,131.36,7.6132]
[1744730643003,3.723,131.4,131.33,18.35493472]
[1744730643203,375.35493472,131.45,131.37,18.35493472]
[1744730643410,0.05860194,131.42,131.4,0.05612276]
[1744730643607,0.05860194,131.42,131.4,35.33017837]
[1744730644108,7.6076,131.46,131.4,35.33017837]
[1744730644312,3.7214,131.47,131.4,35.33017837]
[1744730645114,7.65892726,131.45,131.42,7.6097]
[1744730645414,7.65892726,131.45,131.42,7.66157905]
[1744730645715,7.65892726,131.45,131.42,0.05187905]
[1744730646015,0.05092726,131.45,131.42,0.05187905]
[1744730646312,0.05092726,131.45,131.43,7.6086]
[1744730647013,0.05092726,131.45,131.44,7.6086]
[1744730647413,0.05092726,131.45,131.42,0.05187905]
[1744730647715,0.05092726,131.45,131.43,7.6089]
[1744730648918,7.65902726,131.45,131.42,0.05187905]
[1744730649418,0.05092726,131.45,131.44,7.6086]
[1744730650019,0.05092726,131.45,131.42,0.05187905]
[1744730650716,7.65892726,131.45,131.42,7.66137905]
[1744730651018,0.05092726,131.45,131.42,0.05187905]
[1744730651212,7.609,131.44,131.42,0.05187905]
[1744730652319,7.6092,131.43,131.42,0.05187905]
[1744730653118,7.6113,131.4,131.36,35.28]
[1744730653315,18.35493472,131.41,131.36,35.28]
[1744730653619,7.6124,131.38,131.35,7.6135]
[1744730654122,0.04872134,131.38,131.35,0.05393814]
[1744730654319,7.6135,131.36,131.35,0.05393814]
[1744730656416,18.35493472,131.37,131.31,7.6159]
[1744730656613,18.35493472,131.35,131.3,35.28]
[1744730656816,18.35493472,131.33,131.3,35.28]
[1744730657220,7.6161,131.32,131.29,7.617]
[1744730657421,7.67078063,131.32,131.29,7.67425127]
[1744730658423,7.6162,131.31,131.29,7.67425127]
[1744730658622,7.6162,131.31,131.29,0.05725127]
[1744730659124,7.6167,131.3,131.29,0.05725127]
[1744730659325,0.05468063,131.32,131.29,0.05725127]
[1744730660323,7.67038063,131.32,131.29,0.05725127]
[1744730660820,0.05468063,131.32,131.29,0.05725127]
[1744730661523,7.6167,131.3,131.29,0.05725127]
[1744730662616,7.6164,131.31,131.29,0.05725127]
[1744730663625,7.6167,131.3,131.29,0.05725127]
[1744730664221,0.05468063,131.32,131.29,0.05725127]
[1744730664522,7.6166,131.31,131.29,0.05725127]
[1744730665325,7.6167,131.3,131.29,0.05725127]
[1744730667526,7.6164,131.31,131.29,0.05725127]
[1744730668529,7.67048063,131.32,131.29,7.67445127]
[1744730669328,7.6162,131.31,131.29,0.05725127]
[1744730670026,0.05468063,131.32,131.29,0.05725127]
[1744730670626,0.05468063,131.32,131.29,7.67425127]
[1744730670832,0.05468063,131.32,131.29,0.05725127]
[1744730671131,7.6165,131.31,131.29,0.05725127]
[1744730671930,7.6167,131.3,131.29,0.05725127]
[1744730672330,0.05468063,131.32,131.29,0.05725127]
[1744730672530,7.6165,131.31,131.29,0.05725127]
[1744730672733,0.05468063,131.32,131.29,0.05725127]
[1744730673529,7.6167,131.3,131.29,0.05725127]
[1744730673731,18.35493472,131.31,131.25,7.6193]
[1744730674035,18.35493472,131.29,131.24,35.18]
[1744730674531,18.35493472,131.29,131.25,7.6195]
[1744730674731,0.05513199,131.28,131.26,0.04955711]
[1744730675328,0.05513199,131.28,131.26,18.40449183]
[1744730675526,3.5866,131.35,131.26,26.02449183]
[1744730675732,3.5866,131.35,131.25,22.10993472]
[1744730675736,3.6256,131.37,131.29,18.35493472]
[1744730675933,3.6256,131.37,131.3,35.2]
[1744730676132,3.6256,131.37,131.33,7.6146]
[1744730676133,7.6136,131.36,131.33,7.6146]
[1744730676436,7.66400061,131.36,131.33,7.67114833]
[1744730676640,7.66400061,131.36,131.34,7.6143]
[1744730676934,7.66400061,131.36,131.33,0.05654833]
[1744730676935,0.05040061,131.36,131.33,0.05654833]
[1744730677140,0.05040061,131.36,131.33,7.67114833]
[1744730677340,7.66390061,131.36,131.33,7.67114833]
[1744730678142,0.05040061,131.36,131.34,7.6142]
[1744730678338,0.05040061,131.36,131.33,0.05654833]
[1744730678535,0.05040061,131.36,131.34,35.2]
[1744730678946,0.05040061,131.36,131.35,7.6138]
[1744730679437,7.6138,131.35,131.34,35.2]
[1744730679638,0.05040061,131.36,131.34,35.2]
[1744730680142,0.05040061,131.36,131.35,7.6138]
[1744730680342,0.05040061,131.36,131.34,35.2]
[1744730680544,0.05040061,131.36,131.34,42.814]
[1744730681145,7.66370061,131.36,131.34,42.814]
[1744730681943,0.05040061,131.36,131.34,42.814]
[1744730682145,0.05040061,131.36,131.35,7.6138]
[1744730683344,0.05040061,131.36,131.34,35.2]
[1744730683744,7.66400061,131.36,131.34,35.2]
[1744730684050,0.05040061,131.36,131.34,35.2]
[1744730684546,7.66410061,131.36,131.34,35.2]
[1744730685148,7.66410061,131.36,131.34,42.8141]
[1744730685749,7.66410061,131.36,131.34,35.2]
[1744730685948,0.05040061,131.36,131.34,35.2]
[1744730686248,0.05040061,131.36,131.35,7.6138]
[1744730688648,7.3869,131.41,131.34,53.55493472]
[1744730689151,7.6109,131.4,131.38,7.6118]
[1744730689450,7.66791246,131.4,131.38,7.66577269]
[1744730689852,0.05701246,131.4,131.39,7.6115]
[1744730691353,7.66791246,131.4,131.38,7.66577269]
[1744730691654,0.05701246,131.4,131.38,0.05397269]
[1744730692253,7.6115,131.39,131.38,0.05397269]
[1744730692453,18.41194718,131.4,131.34,35.2]
[1744730692850,18.41194718,131.4,131.35,7.6136]
[1744730693048,18.41194718,131.4,131.34,35.2]
[1744730693353,0.05701246,131.4,131.34,35.2]
[1744730693554,0.05701246,131.4,131.36,0.05606899]
[1744730693949,7.612,131.39,131.36,7.66896899]
[1744730694158,0.05701246,131.4,131.36,7.66896899]
[1744730694456,7.6123,131.38,131.36,7.66896899]
[1744730694757,0.05701246,131.4,131.36,7.66896899]
[1744730694957,7.6119,131.39,131.36,0.05606899]
[1744730695153,0.05701246,131.4,131.36,0.05606899]
[1744730695347,0.05701246,131.4,131.36,18.41100371]
[1744730695956,0.05701246,131.4,131.36,0.05606899]
[1744730696255,7.66811246,131.4,131.38,7.6118]
[1744730696856,7.6115,131.39,131.37,7.6123]
[1744730697057,0.05701246,131.4,131.36,0.05606899]
[1744730697455,7.66821246,131.4,131.37,7.6122]
[1744730697853,7.66821246,131.4,131.36,0.05606899]
[1744730698554,0.05701246,131.4,131.36,0.05606899]
[1744730698756,0.05701246,131.4,131.36,18.41100371]
[1744730699359,0.05701246,131.4,131.39,7.6115]
[1744730699853,0.05701246,131.4,131.38,35.06]
[1744730700053,0.05701246,131.4,131.38,42.6718]
[1744730701265,0.05701246,131.4,131.39,7.6115]
[1744730701465,0.05701246,131.4,131.38,35.06]
[1744730701765,7.6116,131.39,131.36,7.66906899]
[1744730702165,0.05701246,131.4,131.36,0.05606899]
[1744730702665,0.05701246,131.4,131.38,7.6117]
[1744730702867,0.05701246,131.4,131.36,0.05606899]
[1744730703365,7.66831246,131.4,131.37,7.6121]
[1744730703562,0.05701246,131.4,131.37,7.6121]
[1744730703763,0.05701246,131.4,131.36,0.05606899]
[1744730703964,7.6126,131.37,131.36,0.05606899]
[1744730705968,18.35493472,131.37,131.29,35.06]
[1744730706169,18.35493472,131.35,131.31,7.6158]
[1744730706369,25.77613472,131.39,131.31,35.06]
[1744730706563,7.6133,131.36,131.31,35.06]
[1744730706763,25.77613472,131.39,131.31,35.06]
[1744730706965,0.05241722,131.36,131.34,0.05749808]
[1744730707165,0.05241722,131.36,131.34,7.67159808]
[1744730707365,0.05241722,131.36,131.34,0.05749808]
[1744730707670,7.66601722,131.36,131.34,0.05749808]
[1744730707871,0.05241722,131.36,131.34,0.05749808]
[1744730708170,7.6138,131.35,131.34,0.05749808]
[1744730708574,0.05241722,131.36,131.34,0.05749808]
[1744730708763,7.6138,131.35,131.34,0.05749808]
[1744730709171,7.6167,131.3,131.27,35.06]
[1744730709367,18.35493472,131.31,131.26,7.6187]
[1744730709567,18.35493472,131.31,131.24,35.06]